fUSD/lending_fUSD_20260115
["ID","MTS","AMOUNT","RATE_DAILY","PERIOD"]
[402004306,1768456270813,-1307.13,0.00041095,30]
[402004307,1768456270823,-500.0,0.00041095,30]
[402004308,1768456270832,-500.0,0.00041095,30]
[402004309,1768456270842,-500.0,0.00041095,30]
[402004310,1768456270851,-2553.766319,0.00041095,120]
[402004311,1768456270860,-500.0,0.00041095,30]
[402004312,1768456270942,-500.0,0.00041095,30]
[402004313,1768456270951,-2553.766323,0.00041095,120]
[402004314,1768456270960,-500.0,0.00041095,30]
[402004315,1768456270969,-500.0,0.00041095,30]
[402004316,1768456270978,-870.73,0.00041095,30]
[402004317,1768456270987,-1296.01,0.00041095,30]
[402004318,1768456270996,-2901.2,0.00041095,30]
[402004319,1768456271006,-500.0,0.00041095,30]
[402004320,1768456271015,-1510.63,0.00041095,30]
[402004321,1768456271024,-547.16,0.00041095,30]
[402004322,1768456271033,-675.68,0.00041095,30]
[402004323,1768456271042,-2672.7,0.00041095,30]
[402004324,1768456271051,-500.0,0.00041095,30]
[402004325,1768456271060,-500.0,0.00041095,30]
[402004326,1768456271069,-500.0,0.00041095,30]
[402004327,1768456271078,-747.8,0.00041095,30]
[402004328,1768456271088,-500.0,0.00041095,30]
[402004329,1768456271097,-835.52,0.00041095,30]
[402004330,1768456271106,-500.0,0.00041095,30]
[402004331,1768456271115,-577.04390836,0.00041095,30]
[402004332,1768456271124,-2690.14,0.00041095,30]
[402004333,1768456271134,-1978.17,0.00041095,30]
[402004334,1768456271143,-500.0,0.00041095,30]
[402004335,1768456271152,-1312.11,0.00041095,30]
[402004336,1768456271165,-557.29,0.00041095,30]
[402004337,1768456271174,-500.0,0.00041095,30]
[402004338,1768456271183,-1022.6,0.00041095,30]
[402004339,1768456271192,-1337.57,0.00041095,30]
[402004340,1768456271202,-1746.26,0.00041095,30]
[402004341,1768456271211,-539.51,0.00041095,30]
[402004342,1768456271219,-3220.79,0.00041095,30]
[402004343,1768456271228,-1493.44,0.00041095,30]
[402004344,1768456271239,-500.0,0.00041095,30]
[402004345,1768456271248,-1507.88,0.00041095,30]
[402004346,1768456271257,-500.0,0.00041095,30]
[402004347,1768456271266,-500.0,0.00041095,30]
[402004348,1768456271275,-626.68,0.00041095,30]
[402004349,1768456271284,-1289.78,0.00041095,30]
[402004350,1768456271293,-510.66,0.00041095,30]
[402004351,1768456271301,-213.192714,0.00041095,7]
[402004352,1768456271310,-517.72,0.00041095,30]
[402004353,1768456271320,-1839.33,0.00041095,30]
[402004354,1768456271329,-500.0,0.00041095,30]
[402004355,1768456271339,-213.192714,0.00041095,7]
[402004356,1768456271348,-500.0,0.00041095,30]
[402004357,1768456271357,-213.192714,0.00041095,7]
[402004358,1768456271366,-500.0,0.00041095,30]
[402004359,1768456271375,-500.0,0.00041095,30]
[402004360,1768456271384,-213.192706,0.00041095,7]
[402004361,1768456271393,-547.18,0.00041095,30]
[402004362,1768456271402,-2050.85,0.00041095,30]
[402004363,1768456271410,-510.56,0.00041095,30]
[402004364,1768456271419,-500.0,0.00041095,30]
[402004365,1768456271429,-1452.21,0.00041095,30]
[402004366,1768456271438,-581.73,0.00041095,30]
[402004367,1768456271447,-500.0,0.00041095,30]
[402004368,1768456271456,-500.0,0.00041095,30]
[402004369,1768456271466,-500.0,0.00041095,30]
[402004370,1768456271476,-500.0,0.00041095,30]
[402004371,1768456271485,-1103.71,0.00041095,30]
[402004372,1768456271494,-512.07,0.00041095,30]
[402004373,1768456271503,-2218.71,0.00041095,30]
[402004374,1768456271513,-500.0,0.00041095,30]
[402004375,1768456271523,-533.11,0.00041095,30]
[402004376,1768456271532,-500.0,0.00041095,30]
[402004377,1768456271541,-500.0,0.00041095,30]
[402004378,1768456271550,-500.0,0.00041095,30]
[402004379,1768456271560,-500.0,0.00041095,30]
[402004380,1768456271569,-1873.11,0.00041095,30]
[402004381,1768456271578,-169.09829205,0.00041095,30]
[402004382,1768456271587,-557.8050332,0.00041095,30]
[402004383,1768456271597,-1187.6,0.00041095,30]
[402004384,1768456271606,-500.0,0.00041095,30]
[402004385,1768456271616,-1986.74,0.00041095,30]
[402004386,1768456271625,-500.0,0.00041095,30]
[402004387,1768456271634,-290.12730111,0.00041095,30]
[402004388,1768456271644,-826.89,0.00041095,30]
[402004389,1768456271653,-500.0,0.00041095,30]
[402004390,1768456271662,-500.0,0.00041095,30]
[402004391,1768456271671,-500.0,0.00041095,30]
[402004392,1768456271680,-500.0,0.00041095,30]
[402004393,1768456271689,-500.0,0.00041095,30]
[402004394,1768456271698,-882.92,0.00041095,30]
[402004395,1768456271708,-2561.19,0.00041095,30]
[402004396,1768456271718,-1506.3,0.00041095,30]
[402004397,1768456271728,-530.75195049,0.00041095,30]
[402004398,1768456271737,-397.73446546,0.00041095,30]
[402004399,1768456271746,-500.0,0.00041095,30]
[402004400,1768456271755,-500.0,0.00041095,30]
[402004401,1768456271765,-500.0,0.00041095,30]
[402004402,1768456271774,-668.38,0.00041095,30]
[402004403,1768456271784,-1252.91,0.00041095,30]
[402004404,1768456271793,-500.0,0.00041095,30]
[402004405,1768456271802,-679.9,0.00041095,30]
[402004406,1768456271811,-1294.07,0.00041095,30]
[402004407,1768456271820,-759.7,0.00041095,30]
[402004408,1768456271829,-924.88,0.00041095,30]
[402004409,1768456271838,-500.0,0.00041095,30]
[402004410,1768456271848,-500.0,0.00041095,30]
[402004411,1768456271861,-217.00141776,0.00041095,30]
[402004412,1768456271872,-500.0,0.00041095,30]
[402004413,1768456271881,-628.74826357,0.00041095,30]
[402004414,1768456271890,-500.0,0.00041095,30]
[402004415,1768456271899,-500.0,0.00041095,30]
[402004416,1768456271908,-513.57357967,0.00041095,30]
[402004417,1768456271917,-500.0,0.00041095,30]
[402004418,1768456271927,-500.0,0.00041095,30]
[402004419,1768456271936,-500.0,0.00041095,30]
[402004420,1768456271945,-1638.25,0.00041095,30]
[402004421,1768456271954,-500.0,0.00041095,30]
[402004422,1768456271963,-1638.86,0.00041095,30]
[402004423,1768456271972,-910.75,0.00041095,30]
[402004424,1768456271981,-1278.62,0.00041095,30]
[402004425,1768456271991,-500.0,0.00041095,30]
[402004426,1768456272000,-500.0,0.00041095,30]
[402004427,1768456272009,-673.54,0.00041095,30]
[402004428,1768456272018,-500.0,0.00041095,30]
[402004429,1768456272027,-500.0,0.00041095,30]
[402004430,1768456272036,-500.0,0.00041095,30]
[402004431,1768456272046,-500.0,0.00041095,30]
[402004432,1768456272055,-500.0,0.00041095,30]
[402004433,1768456272065,-500.0,0.00041095,120]
[402004434,1768456272074,-500.0,0.00041095,30]
[402004435,1768456272083,-500.0,0.00041095,30]
[402004436,1768456272092,-500.0,0.00041095,30]
[402004437,1768456272101,-1463.35,0.00041095,30]
[402004438,1768456272110,-500.0,0.00041095,30]
[402004439,1768456272120,-1748.03,0.00041095,30]
[402004440,1768456272129,-778.16,0.00041095,30]
[402004441,1768456272139,-2170.39,0.00041095,30]
[402004442,1768456272148,-910.62,0.00041095,30]
[402004443,1768456272159,-500.0,0.00041095,30]
[402004444,1768456272169,-500.0,0.00041095,30]
[402004445,1768456272178,-1909.88,0.00041095,30]
[402004446,1768456272187,-500.0,0.00041095,2]
[402004447,1768456272196,-1593.71,0.00041095,30]
[402004448,1768456272206,-525.61250434,0.00041095,30]
[402004449,1768456272215,-558.87056899,0.00041095,30]
[402004450,1768456272224,-2798.34,0.00041095,30]
[402004451,1768456272236,-500.0,0.00041095,30]
[402004452,1768456272245,-500.0,0.00041095,30]
[402004453,1768456272255,-500.0,0.00041095,30]
[402004454,1768456272265,-500.0,0.00041095,30]
[402004455,1768456272274,-500.0,0.00041095,30]
[402004456,1768456272284,-523.52,0.00041095,30]
[402004457,1768456272293,-300.0,0.00041095,2]
[402004458,1768456272302,-500.0,0.00041095,30]
[402004459,1768456272311,-500.0,0.00041095,30]
[402004460,1768456272321,-764.51,0.00041095,30]
[402004461,1768456272330,-500.0,0.00041095,30]
[402004462,1768456272339,-500.0,0.00041095,30]
[402004463,1768456272349,-512.24022786,0.00041095,30]
[402004464,1768456272358,-521.01341639,0.00041095,30]
[402004465,1768456272367,-500.0,0.00041095,30]
[402004466,1768456272377,-500.0,0.00041095,30]
[402004467,1768456272386,-500.0,0.00041095,30]
[402004468,1768456272395,-548.84,0.00041095,30]
[402004469,1768456272405,-195.91629264,0.00041095,30]
[402004470,1768456272414,-1135.91,0.00041095,30]
[402004471,1768456272423,-500.0,0.00041095,30]
[402004472,1768456272433,-538.03,0.00041095,30]
[402004473,1768456272444,-500.0,0.00041095,30]
[402004474,1768456272454,-500.0,0.00041095,30]
[402004475,1768456272464,-845.61,0.00041095,30]
[402004476,1768456272475,-500.0,0.00041095,30]
[402004477,1768456272484,-502.59273432,0.00041095,30]
[402004478,1768456272493,-315.17488964,0.00041095,30]
[402004479,1768456272502,-1817.75,0.00041095,30]
[402004480,1768456272511,-500.0,0.00041095,30]
[402004481,1768456272521,-977.99,0.00041095,30]
[402004482,1768456272530,-1758.16,0.00041095,30]
[402004483,1768456272539,-634.83,0.00041095,30]
[402004484,1768456272549,-503.54452044,0.00041095,30]
[402004485,1768456272558,-815.54,0.00041095,30]
[402004486,1768456272568,-500.0,0.00041095,30]
[402004487,1768456272577,-500.0,0.00041095,30]
[402004488,1768456272587,-500.0,0.00041095,30]
[402004489,1768456272597,-500.0,0.00041095,30]
[402004490,1768456272607,-437.82840078,0.00041095,30]
[402004491,1768456272618,-500.0,0.00041095,30]
[402004492,1768456272628,-539.5,0.00041095,30]
[402004493,1768456272637,-500.0,0.00041095,30]
[402004494,1768456272647,-642.78,0.00041095,30]
[402004495,1768456272657,-1744.44,0.00041095,30]
[402004496,1768456272667,-653.50796496,0.00041095,120]
[402004497,1768456272677,-554.79,0.00041095,30]
[402004498,1768456272687,-1733.16,0.00041095,30]
[402004499,1768456272697,-500.0,0.00041095,30]
[402004500,1768456272706,-2696.96,0.00041095,30]
[402004501,1768456272716,-500.0,0.00041095,30]
[402004502,1768456272726,-500.0,0.00041095,30]
[402004503,1768456272736,-512.87,0.00041095,30]
[402004504,1768456272745,-500.0,0.00041095,30]
[402004505,1768456272755,-2904.96,0.00041095,30]
[402004506,1768456272765,-500.0,0.00041095,30]
[402004507,1768456272775,-500.0,0.00041095,30]
[402004508,1768456272785,-241.80183594,0.00041095,30]
[402004509,1768456272795,-500.0,0.00041095,30]
[402004510,1768456272804,-2444.5,0.00041095,30]
[402004511,1768456272814,-607.66,0.00041095,30]
[402004512,1768456272823,-500.0,0.00041095,30]
[402004513,1768456272832,-1909.68,0.00041095,30]
[402004514,1768456272842,-587.15853795,0.00041095,30]
[402004515,1768456272851,-500.0,0.00041095,30]
[402004516,1768456272861,-524.37603609,0.00041095,2]
[402004517,1768456272870,-1560.32,0.00041095,30]
[402004518,1768456272879,-500.0,0.00041095,30]
[402004519,1768456272889,-500.0,0.00041095,30]
[402004520,1768456272898,-622.45893264,0.00041095,30]
[402004521,1768456272907,-500.0,0.00041095,30]
[402004522,1768456272916,-500.0,0.00041095,30]
[402004523,1768456272925,-862.87,0.00041095,30]
[402004524,1768456272934,-500.0,0.00041095,30]
[402004525,1768456272943,-500.0,0.00041095,30]
[402004526,1768456272952,-1583.24,0.00041095,30]
[402004527,1768456272961,-1117.85,0.00041095,30]
[402004528,1768456272971,-500.0,0.00041095,2]
[402004529,1768456272980,-500.0,0.00041095,30]
[402004530,1768456272989,-500.0,0.00041095,30]
[402004531,1768456272998,-500.0,0.00041095,30]
[402004532,1768456273007,-500.0,0.00041095,30]
[402004533,1768456273016,-5720.75,0.00041095,30]
[402004534,1768456273024,-499.32160968,0.00041095,2]
[402004535,1768456273033,-1414.83,0.00041095,30]
[402004536,1768456273043,-500.0,0.00041095,30]
[402004537,1768456273052,-540.99,0.00041095,30]
[402004538,1768456273061,-500.0,0.00041095,30]
[402004539,1768456273071,-500.0,0.00041095,30]
[402004540,1768456273080,-365.76713622,0.00041095,30]
[402004541,1768456273089,-1304.18,0.00041095,30]
[402004542,1768456273099,-500.0,0.00041095,30]
[402004543,1768456273108,-4049.42357313,0.00041095,2]
[402004544,1768456273117,-243.41,0.00041096,120]
[402004545,1768456273126,-151.0,0.00041096,120]
[402004546,1768456273136,-151.0,0.00041096,120]
[402004547,1768456273145,-151.0,0.00041096,120]
[402004548,1768456273154,-151.0,0.00041096,120]
[402004549,1768456273167,-151.0,0.00041096,120]
[402004550,1768456273176,-151.0,0.00041096,120]
[402004551,1768456273186,-151.0,0.00041096,120]
[402004552,1768456273195,-151.0,0.00041096,120]
[402004553,1768456273206,-151.0,0.00041096,120]
[402004554,1768456273215,-151.0,0.00041096,120]
[402004555,1768456273224,-151.0,0.00041096,120]
[402004556,1768456273233,-208.713371,0.00041096,120]
[402004557,1768456273242,-250.996936,0.00041096,120]
[402004558,1768456273251,-250.996936,0.00041096,120]
[402004559,1768456273260,-250.996936,0.00041096,120]
[402004560,1768456273269,-250.996936,0.00041096,120]
[402004561,1768456273279,-250.996936,0.00041096,120]
[402004562,1768456273288,-250.996936,0.00041096,120]
[402004563,1768456273297,-250.996936,0.00041096,120]
[402004564,1768456273306,-250.996936,0.00041096,120]
[402004565,1768456273316,-250.996936,0.00041096,120]
[402004566,1768456273324,-250.996936,0.00041096,120]
[402004567,1768456273334,-250.996936,0.00041096,120]
[402004568,1768456273343,-250.996936,0.00041096,120]
[402004569,1768456273352,-250.996936,0.00041096,120]
[402004570,1768456273361,-250.996936,0.00041096,120]
[402004571,1768456273371,-250.996936,0.00041096,120]
[402004572,1768456273380,-250.996936,0.00041096,120]
[402004573,1768456273390,-250.996936,0.00041096,120]
[402004574,1768456273398,-250.996936,0.00041096,120]
[402004575,1768456273407,-250.996936,0.00041096,120]
[402004576,1768456273417,-250.99693,0.00041096,120]
[402004577,1768456273426,-856.10133,0.00041096,90]
[402004578,1768456273435,-856.10133,0.00041096,90]
[402004579,1768456273444,-856.10133,0.00041096,90]
[402004580,1768456273453,-856.10133,0.00041096,90]
[402004581,1768456273462,-856.10133,0.00041096,90]
[402004582,1768456273472,-856.10133,0.00041096,90]
[402004583,1768456273481,-856.10133,0.00041096,90]
[402004584,1768456273490,-856.10133,0.00041096,90]
[402004585,1768456273500,-856.10133,0.00041096,90]
[402004586,1768456273509,-856.10133,0.00041096,90]
[402004587,1768456273518,-856.10133,0.00041096,90]
[402004588,1768456273527,-856.10133,0.00041096,90]
[402004589,1768456273536,-856.10133,0.00041096,90]
[402004590,1768456273546,-856.10133,0.00041096,90]
[402004591,1768456273555,-856.10133,0.00041096,90]
[402004592,1768456273564,-856.10133,0.00041096,90]
[402004593,1768456273574,-856.10133,0.00041096,90]
[402004594,1768456273583,-856.10133,0.00041096,90]
[402004595,1768456273592,-856.10133,0.00041096,90]
[402004596,1768456273601,-856.101337,0.00041096,90]
[402004597,1768456273611,-2000.0,0.00041096,120]
[402004598,1768456273620,-964.54112509,0.00041096,120]
[402004599,1768456273629,-647.71233752,0.00041096,120]
[402004600,1768456273639,-388.62740252,0.00041096,120]
[402004601,1768456273648,-1177.5,0.00041096,120]
[402004602,1768456273657,-1312.83308758,0.00041096,120]
[402004603,1768456273667,-713.53323503,0.00041096,120]
[402004604,1768456273677,-428.11994103,0.00041096,120]
[402004605,1768456273686,-875.0,0.00041096,2]
[402004606,1768456273695,-631.01,0.000411,2]
[402004607,1768456273705,-151.19,0.00041142,120]
[402004608,1768456273715,-875.0,0.00041151,2]
[402004609,1768456273723,-1000.0,0.000412,120]
[402004610,1768456273732,-1000.0,0.000412,120]
[402004611,1768456273742,-1000.0,0.000412,120]
[402004612,1768456273751,-1000.0,0.000412,120]
[402004613,1768456273759,-1000.0,0.000412,120]
[402004614,1768456273769,-1000.0,0.000412,120]
[402004615,1768456273778,-1000.0,0.000412,120]
[402004616,1768456273787,-260.95,0.000412,120]
[402004617,1768456273798,-150.0,0.000412,23]
[402004618,1768456273807,-253.0,0.000412,34]
[402004619,1768456273817,-875.0,0.00041206,2]
[402004620,1768456273827,-151.19,0.00041242,120]
[402004621,1768456273836,-179.41,0.0004126,30]
[402004622,1768456273846,-2079.4,0.0004126,30]
[402004623,1768456273856,-171.66,0.0004126,30]
[402004624,1768456273866,-557.2,0.0004126,30]
[402004625,1768456273875,-467.43,0.0004126,30]
[402004626,1768456273885,-557.2,0.0004126,30]
[402004627,1768456273894,-179.41,0.0004126,30]
[402004628,1768456273904,-171.66,0.0004126,30]
[402004629,1768456273913,-467.43,0.0004126,30]
[402004630,1768456273923,-557.2,0.0004126,30]
[402004631,1768456273932,-179.41,0.0004126,30]
[402004632,1768456273941,-171.66,0.0004126,30]
[402004633,1768456273950,-467.43,0.0004126,30]
[402004634,1768456273961,-179.41,0.0004126,30]
[402004635,1768456273970,-557.2,0.0004126,30]
[402004636,1768456273980,-171.66,0.0004126,30]
[402004637,1768456273989,-467.43,0.0004126,30]
[402004638,1768456273998,-557.2,0.0004126,30]
[402004639,1768456274007,-171.66,0.0004126,30]
[402004640,1768456274017,-179.41,0.0004126,30]
[402004641,1768456274026,-467.43,0.0004126,30]
[402004642,1768456274036,-179.41,0.0004126,30]
[402004643,1768456274045,-383.01,0.0004126,30]
[402004644,1768456274055,-467.43,0.0004126,30]
[402004645,1768456274064,-179.41,0.0004126,30]
[402004646,1768456274074,-467.43,0.0004126,30]
[402004647,1768456274083,-179.41,0.0004126,30]
[402004648,1768456274093,-467.43,0.0004126,30]
[402004649,1768456274102,-467.43,0.0004126,30]
[402004650,1768456274112,-875.0,0.0004126,2]
[402004651,1768456274122,-445.17443,0.00041288,30]
[402004652,1768456274132,-185.0,0.00041298,11]
[402004653,1768456274142,-162.0,0.00041298,11]
[402004654,1768456274153,-834.0,0.000413,11]
[402004655,1768456274169,-162.0,0.00041302,11]
[402004656,1768456274178,-834.0,0.00041303,11]
[402004657,1768456274188,-162.0,0.00041305,11]
[402004658,1768456274198,-500.0,0.00041305,30]
[402004659,1768456274207,-834.0,0.00041306,11]
[402004660,1768456274216,-834.0,0.00041306,11]
[402004661,1768456274225,-834.0,0.00041306,11]
[402004662,1768456274237,-162.0,0.00041306,11]
[402004663,1768456274246,-875.0,0.00041315,2]
[402004664,1768456274255,-151.19,0.00041342,120]
[402004665,1768456274264,-300.147881,0.00041369,30]
[402004666,1768456274274,-355.426866,0.00041369,30]
[402004667,1768456274283,-166.871004,0.00041369,30]
[402004668,1768456274292,-500.0,0.00041369,30]
[402004669,1768456274302,-500.0,0.00041369,30]
[402004670,1768456274312,-160.0,0.00041369,30]
[402004671,1768456274321,-500.0,0.00041369,30]
[402004672,1768456274330,-500.0,0.00041369,30]
[402004673,1768456274340,-500.0,0.00041369,30]
[402004674,1768456274349,-500.0,0.00041369,30]
[402004675,1768456274359,-500.0,0.00041369,30]
[402004676,1768456274369,-500.0,0.00041369,30]
[402004677,1768456274378,-500.0,0.00041369,30]
[402004678,1768456274388,-500.0,0.00041369,30]
[402004679,1768456274397,-500.0,0.00041369,30]
[402004680,1768456274406,-500.0,0.00041369,30]
[402004681,1768456274416,-500.0,0.00041369,30]
[402004682,1768456274425,-500.0,0.00041369,30]
[402004683,1768456274434,-500.0,0.00041369,30]
[402004684,1768456274444,-501.19570995,0.00041369,7]
[402004685,1768456274453,-507.50695739,0.00041369,30]
[402004686,1768456274462,-516.04473635,0.00041369,30]
[402004687,1768456274471,-847.67,0.00041369,30]
[402004688,1768456274481,-703.15,0.00041369,30]
[402004689,1768456274490,-500.0,0.00041369,30]
[402004690,1768456274500,-500.0,0.00041369,30]
[402004691,1768456274509,-500.0,0.00041369,30]
[402004692,1768456274518,-556.0,0.00041369,30]
[402004693,1768456274527,-500.0,0.00041369,30]
[402004694,1768456274536,-500.0,0.00041369,30]
[402004695,1768456274545,-653.27,0.00041369,30]
[402004696,1768456274554,-151.0,0.00041369,120]
[402004697,1768456274564,-500.0,0.00041369,30]
[402004698,1768456274574,-500.0,0.00041369,30]
[402004699,1768456274583,-500.0,0.00041369,30]
[402004700,1768456274592,-540.67782641,0.00041369,30]
[402004701,1768456274602,-583.41157877,0.00041369,30]
[402004702,1768456274612,-500.0,0.00041369,30]
[402004703,1768456274622,-500.0,0.00041369,30]
[402004704,1768456274632,-889.5,0.00041369,30]
[402004705,1768456274642,-647.59255563,0.00041369,30]
[402004706,1768456274651,-500.0,0.00041369,30]
[402004707,1768456274661,-500.0,0.00041369,30]
[402004708,1768456274672,-500.0,0.00041369,30]
[402004709,1768456274681,-763.28,0.00041369,30]
[402004710,1768456274691,-1382.81,0.00041369,30]
[402004711,1768456274701,-922.59,0.00041369,30]
[402004712,1768456274710,-1002.4,0.00041369,30]
[402004713,1768456274720,-500.0,0.00041369,30]
[402004714,1768456274731,-1780.18,0.00041369,30]
[402004715,1768456274741,-500.0,0.00041369,30]
[402004716,1768456274751,-500.0,0.00041369,30]
[402004717,1768456274760,-500.0,0.00041369,30]
[402004718,1768456274770,-500.0,0.00041369,30]
[402004719,1768456274780,-500.0,0.00041369,30]
[402004720,1768456274790,-500.0,0.00041369,30]
[402004721,1768456274800,-153.23437,0.00041369,120]
[402004722,1768456274809,-500.0,0.00041369,30]
[402004723,1768456274819,-1195.69,0.00041369,30]
[402004724,1768456274829,-500.0,0.00041369,30]
[402004725,1768456274837,-1189.32,0.00041369,30]
[402004726,1768456274847,-151.0,0.00041369,120]
[402004727,1768456274857,-500.0,0.00041369,30]
[402004728,1768456274869,-500.0,0.00041369,30]
[402004729,1768456274878,-500.0,0.00041369,30]
[402004730,1768456274889,-500.0,0.00041369,30]
[402004731,1768456274898,-664.53,0.00041369,30]
[402004732,1768456274908,-151.0,0.00041369,120]
[402004733,1768456274918,-632.29,0.00041369,30]
[402004734,1768456274927,-884.55,0.00041369,30]
[402004735,1768456274937,-500.0,0.00041369,30]
[402004736,1768456274947,-500.0,0.00041369,30]
[402004737,1768456274956,-521.08670483,0.00041369,30]
[402004738,1768456274966,-599.58,0.00041369,30]
[402004739,1768456274975,-1060.41,0.00041369,30]
[402004740,1768456274984,-500.0,0.00041369,30]
[402004741,1768456274993,-500.0,0.00041369,30]
[402004742,1768456275003,-729.48,0.00041369,30]
[402004743,1768456275013,-500.0,0.00041369,30]
[402004744,1768456275023,-500.0,0.00041369,30]
[402004745,1768456275032,-743.67,0.00041369,30]
[402004746,1768456275042,-500.0,0.00041369,30]
[402004747,1768456275052,-500.0,0.00041369,30]
[402004748,1768456275061,-638.97,0.00041369,30]
[402004749,1768456275071,-764.46,0.00041369,30]
[402004750,1768456275080,-500.0,0.00041369,30]
[402004751,1768456275090,-614.83,0.00041369,30]
[402004752,1768456275099,-500.0,0.00041369,30]
[402004753,1768456275109,-429.89191485,0.00041369,30]
[402004754,1768456275121,-500.0,0.00041369,30]
[402004755,1768456275130,-151.0,0.00041369,120]
[402004756,1768456275140,-500.0,0.00041369,30]
[402004757,1768456275150,-500.0,0.00041369,30]
[402004758,1768456275162,-500.0,0.00041369,30]
[402004759,1768456275172,-960.32,0.00041369,30]
[402004760,1768456275182,-1151.38,0.00041369,30]
[402004761,1768456275191,-803.55,0.00041369,30]
[402004762,1768456275201,-247.23774667,0.00041369,30]
[402004763,1768456275211,-500.0,0.00041369,30]
[402004764,1768456275220,-1518.47,0.00041369,30]
[402004765,1768456275230,-792.54,0.00041369,30]
[402004766,1768456275240,-500.0,0.00041369,30]
[402004767,1768456275249,-500.0,0.00041369,30]
[402004768,1768456275259,-500.0,0.00041369,30]
[402004769,1768456275268,-500.0,0.00041369,30]
[402004770,1768456275278,-500.0,0.00041369,30]
[402004771,1768456275288,-500.0,0.00041369,30]
[402004772,1768456275299,-500.0,0.00041369,30]
[402004773,1768456275309,-500.0,0.00041369,30]
[402004774,1768456275318,-500.0,0.00041369,30]
[402004775,1768456275328,-522.78,0.00041369,30]
[402004776,1768456275338,-500.0,0.00041369,30]
[402004777,1768456275347,-500.0,0.00041369,30]
[402004778,1768456275357,-500.0,0.00041369,30]
[402004779,1768456275367,-746.43,0.00041369,30]
[402004780,1768456275377,-500.0,0.00041369,30]
[402004781,1768456275387,-500.0,0.00041369,30]
[402004782,1768456275396,-500.0,0.00041369,30]
[402004783,1768456275406,-500.0,0.00041369,30]
[402004784,1768456275416,-500.0,0.00041369,30]
[402004785,1768456275426,-236.38964972,0.00041369,30]
[402004786,1768456275436,-500.0,0.00041369,30]
[402004787,1768456275446,-500.0,0.00041369,30]
[402004788,1768456275456,-500.0,0.00041369,30]
[402004789,1768456275466,-500.0,0.00041369,30]
[402004790,1768456275476,-500.0,0.00041369,30]
[402004791,1768456275486,-500.0,0.00041369,30]
[402004792,1768456275495,-500.0,0.00041369,30]
[402004793,1768456275505,-785.24,0.00041369,30]
[402004794,1768456275514,-500.0,0.00041369,30]
[402004795,1768456275524,-500.0,0.00041369,30]
[402004796,1768456275534,-1009.98,0.00041369,30]
[402004797,1768456275543,-561.39,0.00041369,30]
[402004798,1768456275553,-1031.32,0.00041369,30]
[402004799,1768456275563,-500.0,0.00041369,30]
[402004800,1768456275572,-500.0,0.00041369,30]
[402004801,1768456275582,-799.81,0.00041369,30]
[402004802,1768456275592,-500.0,0.00041369,30]
[402004803,1768456275601,-500.0,0.00041369,30]
[402004804,1768456275611,-1207.94,0.00041369,30]
[402004805,1768456275621,-500.0,0.00041369,30]